bitfinex/quotes_BTCUSD_20250326
["timestamp","ask_amount","ask_price","bid_price","bid_amount"]
[1742997391303,1.92758,87297.0,87296.0,0.0129192]
[1742997391573,1.564073,87297.0,87296.0,0.0129192]
[1742997393441,1.381793,87297.0,87296.0,0.0129192]
[1742997393755,0.4,87297.0,87296.0,0.0129192]
[1742997393952,0.698482,87297.0,87296.0,0.0129192]
[1742997394484,0.58172,87297.0,87296.0,0.0129192]
[1742997395085,0.4,87297.0,87296.0,0.0129192]
[1742997395290,0.58172,87297.0,87296.0,0.013089]
[1742997396122,0.4,87297.0,87296.0,0.013089]
[1742997396354,0.58172,87297.0,87296.0,0.013089]
[1742997396942,0.593175,87297.0,87296.0,0.013089]
[1742997397137,0.411455,87297.0,87296.0,0.013089]
[1742997397324,1.092751,87297.0,87296.0,0.013089]
[1742997397528,0.725507,87297.0,87296.0,0.013089]
[1742997397726,0.769706,87297.0,87296.0,0.013089]
[1742997397958,0.75591,87297.0,87296.0,0.013089]
[1742997398112,0.799956,87297.0,87296.0,0.013089]
[1742997398319,0.757082,87297.0,87296.0,0.013089]
[1742997398530,0.745627,87297.0,87296.0,0.013089]
[1742997398730,0.733773,87297.0,87296.0,0.013089]
[1742997398974,0.58144,87297.0,87296.0,0.013089]
[1742997399184,0.16681307,87304.0,87296.0,0.013089]
[1742997399185,0.15535907,87304.0,87296.0,0.013089]
[1742997399380,0.18096,87297.0,87296.0,0.013089]
[1742997399696,0.18092,87297.0,87296.0,0.013089]
[1742997401977,0.48092,87297.0,87296.0,0.013089]
[1742997402296,0.3,87297.0,87296.0,0.013089]
[1742997402482,0.48008,87297.0,87296.0,0.013089]
[1742997403593,0.491535,87297.0,87296.0,0.013089]
[1742997403798,0.709182,87297.0,87296.0,0.013089]
[1742997403974,0.48008,87297.0,87296.0,0.013089]
[1742997404391,0.720637,87297.0,87296.0,0.013089]
[1742997404587,3.571374,87297.0,87296.0,0.013089]
[1742997404786,1.977512,87297.0,87296.0,0.013089]
[1742997404990,1.282969,87297.0,87296.0,0.013089]
[1742997405147,1.129821,87297.0,87296.0,0.013089]
[1742997405347,1.003141,87297.0,87296.0,0.013089]
[1742997405576,0.545565,87294.0,87293.0,0.009581]
[1742997405807,0.640585,87287.0,87264.0,0.01498135]
[1742997406031,1.979333,87287.0,87264.0,0.01498135]
[1742997406378,1.99728507,87287.0,87264.0,0.01498135]
[1742997407192,0.3792,87278.0,87264.0,0.01498135]
[1742997407390,0.545615,87276.0,87275.0,9.9e-07]
[1742997407576,0.55516489,87276.0,87275.0,9.9e-07]
[1742997407777,0.73348489,87276.0,87275.0,9.9e-07]
[1742997407979,0.75143765,87276.0,87275.0,9.9e-07]
[1742997408182,0.67311765,87276.0,87275.0,9.9e-07]
[1742997408397,0.86301465,87276.0,87275.0,9.9e-07]
[1742997408603,0.98762657,87276.0,87275.0,9.9e-07]
[1742997409026,0.98754657,87276.0,87275.0,9.9e-07]
[1742997409456,0.91154657,87276.0,87275.0,9.9e-07]
[1742997410032,0.72172957,87276.0,87275.0,9.9e-07]
[1742997410237,0.57352957,87276.0,87275.0,9.9e-07]
[1742997410449,0.75164957,87276.0,87275.0,9.9e-07]
[1742997410861,0.45164957,87276.0,87275.0,9.9e-07]
[1742997411088,0.19664468,87276.0,87275.0,9.9e-07]
[1742997411631,0.21630915,87276.0,87275.0,9.9e-07]
[1742997411857,0.19664468,87276.0,87275.0,9.9e-07]
[1742997412213,0.01836468,87276.0,87275.0,9.9e-07]
[1742997412414,0.19652468,87276.0,87275.0,9.9e-07]
[1742997413187,0.01836468,87276.0,87275.0,9.9e-07]
[1742997413389,0.19612468,87276.0,87275.0,9.9e-07]
[1742997413613,0.17817192,87276.0,87275.0,9.9e-07]
[1742997413819,0.17805192,87276.0,87275.0,9.9e-07]
[1742997414820,0.00041192,87276.0,87275.0,9.9e-07]
[1742997415244,0.17749192,87276.0,87275.0,9.9e-07]
[1742997415513,0.00041192,87276.0,87275.0,9.9e-07]
[1742997415719,0.17733192,87276.0,87275.0,9.9e-07]
[1742997415934,0.00041192,87276.0,87275.0,9.9e-07]
[1742997416150,0.17709192,87276.0,87275.0,9.9e-07]
[1742997416351,0.19504096,87276.0,87275.0,9.9e-07]
[1742997416562,0.01836096,87276.0,87275.0,9.9e-07]
[1742997416970,0.01836096,87276.0,87275.0,0.01454184]
[1742997417175,0.01836096,87276.0,87275.0,0.02599984]
[1742997417377,0.0148436,87276.0,87275.0,0.02599984]
[1742997417590,0.0003396,87304.0,87292.0,0.011455]
[1742997417859,0.0003396,87304.0,87293.0,0.126255]
[1742997418117,0.0003396,87304.0,87299.0,0.229096]
[1742997418326,0.0003396,87304.0,87293.0,0.1148]
[1742997418796,0.10516489,87302.0,87293.0,0.0772]
[1742997419637,0.0003398,87297.0,87284.0,0.0815]
[1742997419809,0.3,87295.0,87284.0,0.0815]
[1742997420016,0.3,87295.0,87275.0,0.07572423]
[1742997420471,0.00286386,87294.0,87275.0,0.00012423]
[1742997420652,0.3,87295.0,87275.0,0.00012423]
[1742997421509,0.3,87283.0,87275.0,0.00012423]
[1742997422311,0.17536,87287.0,87275.0,0.00012423]
[1742997423355,0.3,87283.0,87275.0,0.00012423]
[1742997423573,0.00286428,87282.0,87275.0,0.00012423]
[1742997423784,0.011457,87281.0,87275.0,0.00012423]
[1742997423995,0.640615,87276.0,87275.0,0.00012423]
[1742997424206,0.813581,87276.0,87275.0,0.00012423]
[1742997424421,0.4486,87276.0,87275.0,0.00012423]
[1742997424627,1.39685,87276.0,87275.0,0.00012423]
[1742997424851,0.4486,87276.0,87275.0,0.00012423]
[1742997425062,0.62861692,87276.0,87275.0,0.00012423]
[1742997425303,0.64007392,87276.0,87275.0,0.00012423]
[1742997425528,0.81503392,87276.0,87275.0,0.00012423]
[1742997425646,0.64007392,87276.0,87275.0,0.00012423]
[1742997425871,0.81495392,87276.0,87275.0,0.00012423]
[1742997426075,0.91495392,87276.0,87275.0,0.00012423]
[1742997426304,0.91995392,87276.0,87275.0,0.00012423]
[1742997427109,0.640645,87265.0,87264.0,0.01498135]
[1742997427311,1.96166389,87265.0,87264.0,0.01498135]
[1742997427768,1.53337689,87265.0,87264.0,0.01498135]
[1742997427950,1.55133232,87265.0,87264.0,0.01498135]
[1742997428167,0.540651,87263.0,87262.0,9.5e-07]
[1742997428386,0.540651,87263.0,87248.0,2e-08]
[1742997428387,0.411461,87249.0,87248.0,2e-08]
[1742997428538,0.411461,87249.0,87238.0,7.2e-07]
[1742997428539,0.442362,87239.0,87238.0,7.2e-07]
[1742997428748,0.83452689,87239.0,87238.0,7.2e-07]
[1742997429036,0.84647551,87239.0,87238.0,7.2e-07]
[1742997429224,0.86443743,87239.0,87238.0,7.2e-07]
[1742997429440,0.86443743,87239.0,87208.0,0.01869323]
[1742997429441,0.68688,87216.0,87208.0,0.01869323]
[1742997429654,0.640819,87202.0,87201.0,0.00094784]
[1742997429868,1.732783,87202.0,87201.0,0.00094784]
[1742997430076,0.5754,87202.0,87201.0,0.00094784]
[1742997430244,0.1,87192.0,87163.0,0.03743753]
[1742997430454,0.3,87177.0,87163.0,0.03743753]
[1742997430655,0.00286801,87176.0,87163.0,0.03743753]
[1742997430861,0.3,87175.0,87163.0,0.03743753]
[1742997431084,0.01034528,87165.0,87164.0,0.229452]
[1742997431303,0.01034528,87165.0,87164.0,0.1281]
[1742997431431,0.01034528,87165.0,87164.0,0.14264085]
[1742997431636,0.01034528,87165.0,87164.0,0.0813]
[1742997431860,0.01034528,87165.0,87163.0,0.03743753]
[1742997431861,0.3,87177.0,87163.0,0.03743753]
[1742997432073,0.3,87175.0,87163.0,0.03743753]
[1742997432705,0.3,87173.0,87163.0,0.03743753]
[1742997433355,0.3,87173.0,87163.0,0.03760703]
[1742997433557,0.3,87171.0,87163.0,0.03760703]
[1742997434854,0.3,87174.0,87163.0,0.03760703]
[1742997435071,0.01797021,87170.0,87163.0,0.03760703]
[1742997435437,0.3,87174.0,87163.0,0.03760703]
[1742997435647,0.3,87168.0,87163.0,0.03760703]
[1742997436511,0.40516489,87168.0,87163.0,0.03760703]
[1742997436903,0.00286804,87167.0,87163.0,0.03760703]
[1742997437326,0.30286822,87167.0,87163.0,0.03760703]
[1742997437573,0.529446,87167.0,87163.0,0.03760703]
[1742997437755,0.448472,87164.0,87163.0,0.03033757]
[1742997438034,3.29556999,87164.0,87163.0,0.03033757]
[1742997438276,1.014332,87164.0,87163.0,0.03033757]
[1742997438452,1.19649099,87164.0,87163.0,0.03033757]
[1742997439146,1.42101099,87164.0,87163.0,0.03033757]
[1742997439381,1.60821099,87164.0,87163.0,0.03033757]
[1742997440023,1.42101099,87164.0,87163.0,0.03033757]
[1742997440223,1.60869099,87164.0,87163.0,0.03033757]
[1742997440436,1.64316567,87164.0,87163.0,0.03033757]
[1742997440645,1.60869099,87164.0,87163.0,0.03033757]
[1742997441076,1.64316567,87164.0,87163.0,0.03033757]
[1742997441916,1.45548567,87164.0,87163.0,0.03033757]
[1742997442145,1.60837099,87164.0,87163.0,0.03033757]
[1742997442354,1.569933,87164.0,87163.0,0.03033757]
[1742997442578,1.569933,87164.0,87157.0,0.02199267]
[1742997442579,0.529468,87158.0,87157.0,6.7e-07]
[1742997442784,0.3,87158.0,87157.0,6.7e-07]
[1742997442995,0.287,87164.0,87157.0,6.7e-07]
[1742997443195,0.1874,87167.0,87157.0,6.7e-07]
[1742997443601,0.1874,87166.0,87157.0,6.7e-07]
[1742997444037,0.229468,87158.0,87157.0,6.7e-07]
[1742997444441,0.3,87158.0,87157.0,6.7e-07]
[1742997444647,0.32115741,87158.0,87157.0,6.7e-07]
[1742997444855,0.437,87158.0,87157.0,6.7e-07]
[1742997445052,0.62484,87158.0,87157.0,6.7e-07]
[1742997445658,0.636313,87158.0,87157.0,6.7e-07]
[1742997445911,0.84271541,87158.0,87157.0,6.7e-07]
[1742997446289,0.84271541,87158.0,87157.0,0.00017037]
[1742997446537,0.54096,87151.0,87150.0,0.06257547]
[1742997446739,1.388514,87151.0,87150.0,0.06257547]
[1742997447103,0.640977,87145.0,87144.0,0.02281753]
[1742997447305,1.58038995,87145.0,87144.0,0.02281753]
[1742997447655,1.28191095,87145.0,87144.0,0.02281753]
[1742997447806,1.34579085,87145.0,87144.0,0.02281753]
[1742997448009,1.73364985,87145.0,87144.0,0.02281753]
[1742997448422,1.73364985,87145.0,87134.0,0.00467534]
[1742997448423,0.540993,87139.0,87134.0,0.00467534]
[1742997448614,2.8984741,87139.0,87134.0,0.00467534]
[1742997448993,2.2769521,87139.0,87134.0,0.00467534]
[1742997449430,2.33169125,87139.0,87138.0,0.02304175]
[1742997449878,2.74329125,87139.0,87138.0,0.02304175]
[1742997450098,2.29382725,87139.0,87138.0,0.02304175]
[1742997450373,1.69307525,87139.0,87138.0,0.02304175]
[1742997450621,1.50451525,87139.0,87138.0,0.02304175]
[1742997450856,1.69319525,87139.0,87138.0,0.02304175]
[1742997451081,1.40619525,87139.0,87138.0,0.02304175]
[1742997451541,1.50451525,87139.0,87138.0,0.02304175]
[1742997451770,1.20710325,87139.0,87138.0,0.02304175]
[1742997452032,1.06420525,87139.0,87138.0,0.02304175]
[1742997452315,0.95340525,87139.0,87138.0,0.02304175]
[1742997452553,0.76420525,87139.0,87138.0,0.02304175]
[1742997452777,1.42193825,87139.0,87138.0,0.02304175]
[1742997453008,1.72193825,87139.0,87138.0,0.02304175]
[1742997454415,1.53193825,87139.0,87138.0,0.02304175]
[1742997454418,1.72229825,87139.0,87138.0,0.02304175]
[1742997454695,1.72245825,87139.0,87138.0,0.02304175]
[1742997455264,1.72245825,87139.0,87134.0,0.00467534]
[1742997455265,0.24088559,87135.0,87134.0,0.00467534]
[1742997455793,1.16246264,87135.0,87134.0,0.00467534]
[1742997455794,1.31246264,87135.0,87134.0,0.00467534]
[1742997456094,0.241029,87126.0,87119.0,0.02446725]
[1742997456305,0.9984173,87126.0,87119.0,0.02446725]
[1742997456536,0.241046,87120.0,87119.0,0.02296725]
[1742997456803,4.48683642,87120.0,87119.0,0.02296725]
[1742997457076,5.85520808,87120.0,87119.0,0.02296725]
[1742997457299,5.85520808,87120.0,87113.0,6.8e-07]
[1742997457300,0.38560385,87114.0,87113.0,6.8e-07]
[1742997457563,0.491082,87107.0,87106.0,0.02529212]
[1742997457838,2.09922915,87107.0,87106.0,0.02529212]
[1742997458074,0.99861115,87107.0,87106.0,0.02529212]
[1742997458795,1.05716747,87107.0,87106.0,0.02529212]
[1742997459030,1.07822099,87107.0,87106.0,0.02529212]
[1742997459501,1.03777633,87107.0,87106.0,0.02546192]
[1742997459977,0.79669433,87107.0,87106.0,0.02546192]
[1742997460227,0.38020628,87107.0,87106.0,0.02546192]
[1742997460732,0.19076628,87107.0,87106.0,0.02546192]
[1742997461253,0.08560139,87107.0,87106.0,0.02546192]
[1742997461495,0.24106544,87107.0,87106.0,0.02546192]
[1742997461743,0.03411686,87107.0,87106.0,0.02546192]
[1742997462002,0.03411686,87107.0,87106.0,0.11574192]
[1742997462231,0.0183244,87139.0,87107.0,0.025]
[1742997462232,0.19,87125.0,87107.0,0.025]
[1742997462435,0.18984,87124.0,87113.0,0.011479]
[1742997462639,0.19024,87128.0,87113.0,0.011479]
[1742997462862,0.1904,87127.0,87099.0,0.025]
[1742997463049,0.10516489,87118.0,87096.0,0.04423192]
[1742997463286,0.10516489,87118.0,87096.0,0.01923192]
[1742997463452,0.10516489,87118.0,87102.0,0.02530311]
[1742997463615,0.1904,87117.0,87102.0,0.00030311]
[1742997463815,0.1904,87116.0,87102.0,0.00030311]
[1742997464735,0.10516489,87118.0,87102.0,0.00030311]
[1742997464946,0.18988,87117.0,87102.0,0.00030311]
[1742997465568,0.10516489,87118.0,87102.0,0.00030311]
[1742997465800,0.18984,87116.0,87102.0,0.00030311]
[1742997466337,0.18968,87121.0,87107.0,0.02281815]
[1742997466556,0.0003396,87139.0,87102.0,0.00030311]
[1742997466764,0.10516489,87126.0,87102.0,0.00030311]
[1742997467788,0.10516489,87107.0,87102.0,0.00030311]
[1742997467905,0.10516489,87107.0,87106.0,0.02587384]
[1742997469399,0.98580689,87107.0,87106.0,0.02587384]
[1742997469605,0.60489289,87107.0,87106.0,0.02587384]
[1742997469806,0.10516489,87107.0,87106.0,0.02587384]
[1742997470010,0.24649289,87107.0,87106.0,0.02587384]
[1742997470231,0.25797289,87107.0,87106.0,0.02587384]
[1742997470424,0.66957289,87107.0,87106.0,0.02587384]
[1742997470886,0.65809289,87107.0,87106.0,0.02587384]
[1742997471094,0.10516489,87107.0,87106.0,0.02587384]
[1742997471507,0.29364489,87107.0,87106.0,0.02587384]
[1742997472289,1.0,87120.0,87117.0,0.229575]
[1742997472487,1.0,87120.0,87107.0,0.02296815]
[1742997472694,1.0,87120.0,87106.0,0.02587384]
[1742997473697,0.18804,87119.0,87106.0,0.02587384]
[1742997473927,1.0,87120.0,87106.0,0.02587384]
[1742997474129,0.1882,87118.0,87112.0,0.011479]
[1742997474377,0.1882,87118.0,87113.0,0.229586]
[1742997474761,0.1882,87118.0,87106.0,0.02587384]
[1742997475064,0.18784,87117.0,87106.0,0.02587384]
[1742997475282,1.0,87120.0,87106.0,0.02587384]
[1742997475465,0.18776,87116.0,87106.0,0.02587384]
[1742997475684,0.3,87115.0,87106.0,0.02587384]
[1742997476295,0.3,87115.0,87111.0,0.229589]
[1742997476470,0.3,87115.0,87109.0,0.229597]
[1742997476642,0.3,87119.0,87106.0,0.02587384]
[1742997476855,0.3,87119.0,87108.0,0.2296]
[1742997477064,0.3,87119.0,87106.0,0.02587384]
[1742997477264,0.3,87119.0,87107.0,0.229602]
[1742997477491,0.3,87119.0,87106.0,0.02587384]
[1742997477868,0.487,87119.0,87106.0,0.02587384]
[1742997478072,0.487,87119.0,87109.0,0.229594]
[1742997478270,0.487,87119.0,87107.0,0.01148]
[1742997478565,0.487,87119.0,87112.0,0.229586]
[1742997478914,0.487,87119.0,87107.0,0.01148]
[1742997478915,0.487,87119.0,87107.0,0.2296]
[1742997479206,0.487,87119.0,87110.0,0.241068]
[1742997479557,0.487,87119.0,87110.0,0.229589]
[1742997479766,0.487,87119.0,87111.0,0.59632]
[1742997480193,0.3,87117.0,87111.0,0.59632]
[1742997481026,0.3,87115.0,87106.0,0.02587384]
[1742997481249,0.40516489,87107.0,87106.0,0.02587384]
[1742997481465,1.52128589,87107.0,87106.0,0.02587384]
[1742997481664,3.12687689,87107.0,87106.0,0.02587384]
[1742997481870,2.85190989,87107.0,87106.0,0.02587384]
[1742997482053,2.85190989,87107.0,87088.0,0.59632]
[1742997482054,0.54111,87097.0,87061.0,0.00031368]
[1742997482300,1.403983,87097.0,87061.0,0.00031368]
[1742997482517,1.341951,87097.0,87061.0,0.00031368]
[1742997483760,0.91506873,87097.0,87061.0,0.00031368]
[1742997483977,0.91514873,87097.0,87061.0,0.00531368]
[1742997484390,2.01007373,87097.0,87061.0,0.00031368]
[1742997484596,1.47844273,87097.0,87061.0,0.00031368]
[1742997484805,0.92662973,87097.0,87061.0,0.00031368]
[1742997485010,1.24709673,87097.0,87061.0,0.00031368]
[1742997485820,1.24709673,87097.0,87062.0,0.005]
[1742997485821,0.72958873,87097.0,87062.0,0.005]
[1742997486024,0.91518873,87097.0,87061.0,0.00031368]
[1742997486224,1.07952973,87097.0,87061.0,0.00031368]
[1742997486460,1.13110173,87097.0,87061.0,0.00031368]
[1742997486668,0.92666973,87097.0,87061.0,0.00031368]
[1742997486840,1.90155773,87097.0,87061.0,0.00031368]
[1742997487218,1.12099073,87097.0,87061.0,0.00031368]
[1742997487825,1.10950973,87097.0,87061.0,0.00031368]
[1742997488027,1.06716273,87097.0,87061.0,0.00031368]
[1742997488245,1.04339073,87097.0,87061.0,0.00031368]
[1742997488409,1.02826273,87097.0,87061.0,0.00031368]
[1742997488795,1.26937273,87097.0,87061.0,0.00031368]
[1742997489474,0.3,87088.0,87061.0,0.00031368]
[1742997489669,0.81676489,87088.0,87061.0,0.00031368]
[1742997490297,0.83475467,87088.0,87064.0,0.011485]
[1742997490492,0.12315467,87088.0,87071.0,0.013484]
[1742997490721,0.30855467,87088.0,87071.0,0.002]
[1742997490899,0.30855467,87088.0,87080.0,0.10099941]
[1742997490900,0.0468,87087.0,87080.0,0.10099941]
[1742997491036,0.31435323,87086.0,87080.0,0.10099941]
[1742997491232,0.3,87084.0,87080.0,0.10099941]
[1742997491451,0.295,87084.0,87080.0,0.10099941]
[1742997492096,0.002871,87083.0,87080.0,0.10099941]
[1742997492374,0.002871,87083.0,87061.0,0.00031368]
[1742997492375,0.229721,87062.0,87061.0,0.00031368]
[1742997492582,4.40832189,87062.0,87061.0,0.00031368]
[1742997492785,5.88865274,87062.0,87061.0,0.00031368]
[1742997492996,5.96505274,87062.0,87061.0,0.00031368]
[1742997493206,5.983052,87062.0,87061.0,0.00031368]
[1742997493420,5.983052,87062.0,87028.0,0.01200333]
[1742997493421,0.1,87039.0,87028.0,0.01200333]
[1742997493623,0.40516489,87029.0,87028.0,0.01200333]
[1742997494033,0.59052489,87029.0,87028.0,0.01200333]
[1742997494237,0.40516489,87029.0,87028.0,0.01200333]
[1742997494442,0.60856628,87029.0,87028.0,0.01200333]
[1742997494701,0.64121369,87029.0,87028.0,0.01200333]
[1742997494906,0.60897769,87029.0,87028.0,0.01200333]
[1742997495340,0.94071169,87029.0,87028.0,0.01200333]
[1742997495537,0.94071169,87029.0,86995.0,0.00153846]
[1742997495538,0.541354,87009.0,86995.0,0.00153846]
[1742997495710,4.47804789,87009.0,86995.0,0.00153846]
[1742997495912,2.78360289,87009.0,86995.0,0.00153846]
[1742997496116,0.3,87009.0,86996.0,0.59664]
[1742997496368,0.31800704,87009.0,86996.0,0.59664]
[1742997496575,0.54786804,87009.0,87000.0,0.01232955]
[1742997496904,0.40516489,87001.0,87000.0,0.00283965]
[1742997497333,0.3,87001.0,87000.0,0.00283965]
[1742997497542,0.1,87001.0,87000.0,0.01433365]
[1742997497750,0.1,87001.0,87000.0,0.24421865]
[1742997497894,0.1,87001.0,87000.0,0.00283965]
[1742997498283,0.28577116,87001.0,87000.0,0.00283965]
[1742997498464,0.10041116,87001.0,87000.0,0.00283965]
[1742997498671,0.10041116,87001.0,87000.0,0.01433365]
[1742997499962,0.10041116,87001.0,87000.0,0.00283965]
[1742997500177,0.10041116,87001.0,86946.0,0.00170455]
[1742997500178,0.241395,86994.0,86946.0,0.00170455]
[1742997500384,0.1,86987.0,86946.0,0.00170455]
[1742997500582,3.4173462,86987.0,86946.0,0.00170455]
[1742997500782,3.06800895,86987.0,86947.0,0.59684]
[1742997501033,2.43451841,86987.0,86947.0,0.59684]
[1742997501239,2.43451841,86987.0,86952.0,0.230009]
[1742997501240,1.09808546,86987.0,86952.0,0.230009]
[1742997501459,1.06425846,86987.0,86949.0,0.0115]
[1742997501664,1.07575346,86987.0,86947.0,0.59684]
[1742997501866,0.88827346,86987.0,86947.0,0.59684]
[1742997502074,1.45679246,86987.0,86947.0,0.59684]
[1742997502685,1.45671246,86987.0,86947.0,0.59684]
[1742997503132,1.30671246,86987.0,86947.0,0.59684]
[1742997503407,1.29521746,86987.0,86947.0,0.59684]
[1742997503635,0.1,86966.0,86947.0,0.58608777]
[1742997503877,0.66529846,86987.0,86947.0,0.58608777]
[1742997503878,0.40516489,86948.0,86947.0,0.58608777]
[1742997504107,0.49920749,86948.0,86947.0,0.58608777]
[1742997504563,0.51722418,86948.0,86947.0,0.58608777]
[1742997504742,0.63389007,86948.0,86947.0,0.04608777]
[1742997504986,0.541526,86947.0,86946.0,0.00170455]
[1742997505212,1.38445657,86947.0,86946.0,0.00170455]
[1742997505482,1.89605657,86947.0,86946.0,0.00170455]
[1742997505720,1.64250957,86947.0,86946.0,0.00170455]
[1742997505983,0.65494957,86947.0,86946.0,0.00170455]
[1742997506205,0.73996657,86947.0,86946.0,0.00170455]
[1742997506373,0.49844057,86947.0,86946.0,0.00170455]
[1742997506582,0.31076057,86947.0,86946.0,0.00170455]
[1742997506788,1.11664757,86947.0,86946.0,0.00170455]
[1742997507340,1.09646657,86947.0,86946.0,0.00170455]
[1742997507565,1.01739057,86947.0,86946.0,0.00170455]
[1742997507741,0.3,86941.0,86938.0,0.00328622]
[1742997507962,0.44825665,86939.0,86938.0,0.00328622]
[1742997508121,0.79888265,86939.0,86938.0,0.00328622]
[1742997508326,0.44825665,86939.0,86938.0,0.00328622]
[1742997508484,0.63549665,86939.0,86938.0,0.00328622]
[1742997508684,0.44825665,86939.0,86938.0,0.00328622]
[1742997508933,0.19829665,86939.0,86938.0,0.00328622]
[1742997509714,0.01125665,86939.0,86938.0,0.00328622]
[1742997509915,0.19797665,86939.0,86938.0,0.00328622]
[1742997510699,0.97290765,86939.0,86938.0,0.00328622]
[1742997510920,0.99240523,86939.0,86938.0,0.00328622]
[1742997511158,0.51575723,86939.0,86938.0,0.00328622]
[1742997511612,0.82814723,86939.0,86938.0,0.00328622]
[1742997511835,0.32927723,86939.0,86938.0,0.00328622]
[1742997512064,0.51555723,86939.0,86938.0,0.00328622]
[1742997512403,0.21555723,86939.0,86938.0,0.00328622]
[1742997512608,0.01125665,86939.0,86938.0,0.00328622]
[1742997513008,0.19725665,86939.0,86938.0,0.00328622]
[1742997513210,0.01125665,86939.0,86938.0,0.00328622]
[1742997513660,0.01125665,86939.0,86938.0,0.01978822]
[1742997513862,0.00041091,86948.0,86943.0,0.011501]
[1742997514118,0.01085978,86947.0,86946.0,0.230025]
[1742997514235,0.01085978,86947.0,86946.0,0.246526]
[1742997514446,0.01085978,86947.0,86946.0,0.324226]
[1742997514928,0.111493,87002.0,86946.0,0.324226]
[1742997514929,0.18516,86977.0,86974.0,0.011497]
[1742997515132,0.01801372,86996.0,86988.0,0.011495]
[1742997515346,0.01801372,86996.0,86989.0,0.608935]
[1742997515553,0.01801372,86996.0,86990.0,0.0861852]
[1742997515769,0.01801372,86996.0,86989.0,0.59744]
[1742997515974,0.20329372,86996.0,86989.0,0.59744]
[1742997516365,0.20329372,86996.0,86989.0,0.59756308]
[1742997516574,0.01801372,86996.0,86989.0,0.59756308]
[1742997517447,0.18488,86995.0,86989.0,0.59756308]
[1742997518179,0.3,86994.0,86989.0,0.00012308]
[1742997518420,0.48448,86994.0,86989.0,0.00012308]
[1742997519104,0.01801372,86996.0,86989.0,0.00012308]
[1742997519105,0.3,86992.0,86989.0,0.00012308]
[1742997519287,0.3,86990.0,86989.0,0.00012308]
[1742997520221,0.01801372,86996.0,86989.0,0.00012308]
[1742997520222,0.3,86993.0,86989.0,0.00012308]
[1742997520443,0.01801372,86996.0,86995.0,0.241392]
[1742997520665,0.01801372,86996.0,86991.0,0.241401]
[1742997520872,0.01801372,86996.0,86991.0,0.011495]
[1742997521077,0.01801372,86996.0,86991.0,0.229907]
[1742997521290,0.01801372,86996.0,86989.0,0.00012308]
[1742997522211,0.01801372,86996.0,86995.0,0.011494]
[1742997522414,1.0,87000.0,86996.0,0.246389]
[1742997522652,1.0,87000.0,86999.0,0.016494]
[1742997523058,1.0,87000.0,86999.0,0.041494]
[1742997523271,0.02000443,87049.0,87024.0,0.011491]
[1742997523272,0.18276,87035.0,87024.0,0.011491]
[1742997523475,0.005,87047.0,87024.0,0.59724]
[1742997523683,0.1828,87048.0,87024.0,0.608731]
[1742997523885,0.18268,87048.0,87031.0,0.01149]
[1742997524095,0.002,87049.0,87029.0,0.241298]
[1742997524266,0.002,87049.0,87029.0,0.0631711]
[1742997524681,0.011491,87021.0,86973.0,0.057697]
[1742997524887,0.011491,87021.0,86987.0,0.59712]
[1742997524888,0.305,87006.0,86987.0,0.59712]
[1742997525086,0.18248,87020.0,86988.0,0.02]
[1742997525241,0.3,87019.0,86988.0,0.079712]
[1742997525659,0.3,87019.0,86988.0,0.059712]
[1742997525865,0.01800488,87012.0,86988.0,0.059712]
[1742997526072,0.01800488,87012.0,87000.0,0.011494]
[1742997526314,0.01800488,87012.0,87005.0,0.011493]
[1742997526523,0.01800488,87012.0,87001.0,0.011494]
[1742997526931,0.01800488,87012.0,87004.0,0.229872]
[1742997527136,0.01800488,87012.0,87001.0,0.011494]
[1742997527341,0.01800488,87012.0,87011.0,0.241347]
[1742997527700,0.01800488,87012.0,87002.0,0.0324688]
[1742997527905,0.01800488,87012.0,87003.0,0.011493]
[1742997528108,0.01800488,87012.0,87006.0,0.011493]
[1742997528518,0.01800488,87012.0,87003.0,0.02]
[1742997528697,0.01800488,87012.0,87005.0,0.229869]
[1742997528903,0.01800488,87012.0,87011.0,0.011492]
[1742997529104,0.01800488,87012.0,87011.0,0.241347]
[1742997529672,0.01800488,87012.0,87011.0,0.261347]
[1742997530997,0.00225061,87012.0,87011.0,0.27588785]
[1742997531341,0.002,87049.0,87030.0,0.01149]
[1742997531548,0.002,87049.0,87031.0,0.597]
[1742997531961,0.002,87049.0,87031.0,0.826802]
[1742997532131,0.002,87049.0,87031.0,0.597]
[1742997532369,0.002,87049.0,87031.0,0.83829]
[1742997532573,0.00241141,87049.0,87041.0,0.011488]
[1742997532798,0.00241141,87049.0,87046.0,0.22976]
[1742997533010,0.00241141,87049.0,87045.0,0.241248]
[1742997533217,0.00241141,87049.0,87040.0,0.011488]
[1742997533435,0.00241141,87049.0,87041.0,0.229776]
[1742997533639,0.00241141,87049.0,87037.0,0.241274]
[1742997533866,0.00241141,87049.0,87033.0,0.011489]
[1742997533867,0.00241141,87049.0,87036.0,0.229788]
[1742997534070,0.00241141,87049.0,87035.0,0.011489]
[1742997534276,0.00241141,87049.0,87041.0,0.229776]
[1742997534423,0.00241141,87049.0,87041.0,0.241264]
[1742997534642,0.00241141,87049.0,87042.0,0.0505515]
[1742997534841,0.00241141,87049.0,87034.0,0.249792]
[1742997535041,0.00241141,87049.0,87033.0,0.02]
[1742997535240,0.00241141,87049.0,87031.0,0.597]
[1742997535445,0.3,87047.0,87033.0,0.011489]
[1742997535606,0.00241141,87049.0,87031.0,0.60849]
[1742997535607,0.00241141,87049.0,87044.0,0.011488]
[1742997535811,0.00241141,87049.0,87047.0,0.22976]
[1742997536011,0.00241141,87049.0,87048.0,0.011487]
[1742997536835,0.00241141,87049.0,87048.0,0.031487]
[1742997537901,0.00275141,87049.0,87048.0,0.02]
[1742997538118,0.00275141,87049.0,87020.0,0.50403182]
[1742997538119,0.00275141,87049.0,87041.0,0.02]
[1742997538323,0.00275141,87049.0,87016.0,0.011492]
[1742997538522,0.00275141,87049.0,87023.0,0.249823]
[1742997538751,0.00275141,87049.0,87033.0,0.07726961]
[1742997538752,0.01799585,87045.0,87033.0,0.07726961]
[1742997538999,0.01799585,87045.0,87032.0,0.649088]
[1742997539000,0.3,87041.0,87032.0,0.4078]
[1742997539820,0.3,87041.0,87034.0,0.011489]
[1742997540060,0.01799585,87045.0,87036.0,0.011489]
[1742997540272,0.01799585,87045.0,87037.0,0.229787]
[1742997540440,0.01799585,87045.0,87032.0,0.4078]
[1742997540691,0.01799585,87045.0,87031.0,0.597]
[1742997542025,0.3,87048.0,87011.0,0.10573558]